[Event "*** Titled Tuesday Blitz"]
[Site "Chess.com"]
[Date "2020.04.21"]
[Round "1"]
[White "Hippotaner"]
[Black "MarcoRiehle"]
[Result "0-1"]
[WhiteElo "2249"]
[BlackElo "2598"]
[TimeControl "180+1"]
[EndTime "10:06:49 PDT"]
[Termination "MarcoRiehle won by checkmate"]

1. Nf3 {[%clk 0:02:59.1]} 1... Nf6 {[%clk 0:02:55.4]} 2. g3 {[%clk 0:02:59.3]}
2... c5 {[%clk 0:02:52.7]} 3. Bg2 {[%clk 0:02:59.7]} 3... Nc6 {[%clk 0:02:45]}
4. O-O {[%clk 0:02:59.8]} 4... e5 {[%clk 0:02:44.8]} 5. d3 {[%clk 0:03:00.1]}
5... d5 {[%clk 0:02:44.6]} 6. Nbd2 {[%clk 0:03:00.3]} 6... Be7 {[%clk
0:02:44.4]} 7. e4 {[%clk 0:03:00.5]} 7... d4 {[%clk 0:02:43.9]} 8. Nc4 {[%clk
0:03:00.1]} 8... Bd6 {[%clk 0:02:42.8]} 9. a4 {[%clk 0:02:56.3]} 9... h6 {[%clk
0:02:40]} 10. Ne1 {[%clk 0:02:51.3]} 10... Bc7 {[%clk 0:02:30.6]} 11. c3 {[%clk
0:02:38.7]} 11... Be6 {[%clk 0:02:23.5]} 12. Na3 {[%clk 0:02:30]} 12... g5
{[%clk 0:02:11.6]} 13. cxd4 {[%clk 0:02:22]} 13... Nxd4 {[%clk 0:02:01]} 14. Be3
{[%clk 0:02:18]} 14... Bb3 {[%clk 0:01:58.7]} 15. Qd2 {[%clk 0:02:15]} 15... Ba5
{[%clk 0:01:58]} 16. f4 {[%clk 0:01:24.1]} 16... Bxd2 {[%clk 0:01:54.2]} 17.
Bxd2 {[%clk 0:01:25]} 17... gxf4 {[%clk 0:01:52.4]} 18. gxf4 {[%clk 0:01:25.8]}
18... exf4 {[%clk 0:01:52.8]} 19. Nb5 {[%clk 0:01:18]} 19... Nxb5 {[%clk
0:01:47.2]} 20. axb5 {[%clk 0:01:18.9]} 20... Nh5 {[%clk 0:01:38.7]} 21. Bf3
{[%clk 0:01:17.7]} 21... Qh4 {[%clk 0:01:12.7]} 22. Ng2 {[%clk 0:01:13.9]} 22...
Rg8 {[%clk 0:01:10.9]} 23. Ra3 {[%clk 0:01:10.5]} 23... Be6 {[%clk 0:01:07.4]}
24. b6 {[%clk 0:01:09.3]} 24... a6 {[%clk 0:01:02.7]} 25. e5 {[%clk 0:01:09.7]}
25... Bh3 {[%clk 0:00:59.7]} 26. Bxb7 {[%clk 0:01:09.5]} 26... Bxg2 {[%clk
0:00:55.9]} 27. Bxg2 {[%clk 0:01:09.3]} 27... Ke7 {[%clk 0:00:50.9]} 28. Raa1
{[%clk 0:01:01.1]} 28... Rxg2+ {[%clk 0:00:47]} 29. Kxg2 {[%clk 0:01:00.2]}
29... Rg8+ {[%clk 0:00:47.4]} 30. Kf3 {[%clk 0:01:00.4]} 30... Qh3+ {[%clk
0:00:44]} 31. Ke4 {[%clk 0:01:00]} 31... Qg2+ {[%clk 0:00:43.7]} 32. Rf3 {[%clk
0:00:51.2]} 32... Qe2+ {[%clk 0:00:43.1]} 33. Kd5 {[%clk 0:00:49.5]} 33... Qxf3+
{[%clk 0:00:42.6]} 34. Kxc5 {[%clk 0:00:49.9]} 34... Rc8+ {[%clk 0:00:41.8]} 35.
Kb4 {[%clk 0:00:49.2]} 35... Qxd3 {[%clk 0:00:41.8]} 36. b7 {[%clk 0:00:48.5]}
36... Qxd2+ {[%clk 0:00:41.3]} 37. Ka4 {[%clk 0:00:47.5]} 37... Qc2+ {[%clk
0:00:40.7]} 38. b3 {[%clk 0:00:47.1]} 38... Qc6+ {[%clk 0:00:38.1]} 39. Ka3
{[%clk 0:00:45.8]} 39... Qxb7 {[%clk 0:00:38.4]} 40. Rd1 {[%clk 0:00:45.9]}
40... Rc3 {[%clk 0:00:38]} 41. Rb1 {[%clk 0:00:45.6]} 41... a5 {[%clk
0:00:37.9]} 42. e6 {[%clk 0:00:46]} 42... Qb4+ {[%clk 0:00:37.7]} 43. Ka2 {[%clk
0:00:45.8]} 43... a4 {[%clk 0:00:38.6]} 44. bxa4 {[%clk 0:00:45.3]} 44... Ra3#
{[%clk 0:00:37]} 0-1

[Event "*** Titled Tuesday Blitz"]
[Site "Chess.com"]
[Date "2020.04.21"]
[Round "1"]
[White "Shuvalov"]
[Black "mishanick"]
[Result "0-1"]
[WhiteElo "2476"]
[BlackElo "3061"]
[TimeControl "180+1"]
[EndTime "10:06:50 PDT"]
[Termination "mishanick won by resignation"]

1. Nf3 {[%clk 0:03:00.8]} 1... d5 {[%clk 0:02:57.2]} 2. c4 {[%clk 0:03:00.5]}
2... e6 {[%clk 0:02:56.5]} 3. g3 {[%clk 0:03:00.3]} 3... Nf6 {[%clk 0:02:56.7]}
4. Bg2 {[%clk 0:03:00.6]} 4... c6 {[%clk 0:02:57]} 5. b3 {[%clk 0:03:00.4]} 5...
Be7 {[%clk 0:02:55.9]} 6. Bb2 {[%clk 0:03:00.5]} 6... O-O {[%clk 0:02:56.2]} 7.
O-O {[%clk 0:03:00.7]} 7... Nbd7 {[%clk 0:02:56.3]} 8. e3 {[%clk 0:03:00.8]}
8... b6 {[%clk 0:02:55.6]} 9. Nc3 {[%clk 0:03:00.8]} 9... a5 {[%clk 0:02:54]}
10. Qe2 {[%clk 0:02:59.7]} 10... Ba6 {[%clk 0:02:54.1]} 11. d3 {[%clk
0:02:59.3]} 11... Re8 {[%clk 0:02:50]} 12. e4 {[%clk 0:02:58.9]} 12... dxe4
{[%clk 0:02:49.6]} 13. dxe4 {[%clk 0:02:59.8]} 13... e5 {[%clk 0:02:49.7]} 14.
Rad1 {[%clk 0:02:58.6]} 14... Qc7 {[%clk 0:02:50.2]} 15. Nh4 {[%clk 0:02:58.3]}
15... Nf8 {[%clk 0:02:47.1]} 16. Nf5 {[%clk 0:02:58.1]} 16... Bc5 {[%clk
0:02:36.9]} 17. Na4 {[%clk 0:02:58.1]} 17... Ne6 {[%clk 0:02:36.5]} 18. Nxc5
{[%clk 0:02:48.9]} 18... bxc5 {[%clk 0:02:37.4]} 19. Qe3 {[%clk 0:02:44.3]}
19... Ng4 {[%clk 0:01:21.3]} 20. Qe2 {[%clk 0:02:26.8]} 20... Nf6 {[%clk
0:01:21.5]} 21. Qe3 {[%clk 0:02:26.8]} 21... g6 {[%clk 0:01:21.7]} 22. Nd6
{[%clk 0:02:22.4]} 22... Red8 {[%clk 0:01:12.1]} 23. Bxe5 {[%clk 0:02:00.1]}
23... Ng4 {[%clk 0:01:11.8]} 24. Qc3 {[%clk 0:02:00.3]} 24... Nxe5 {[%clk
0:01:03.5]} 25. Qxe5 {[%clk 0:02:00.3]} 25... Nd4 {[%clk 0:01:03.5]} 26. Qxc5
{[%clk 0:01:24.4]} 26... Qxd6 {[%clk 0:00:59.3]} 27. Qxd6 {[%clk 0:01:21.9]}
27... Rxd6 {[%clk 0:01:00.2]} 28. e5 {[%clk 0:01:22.5]} 28... Rdd8 {[%clk
0:00:57.7]} 29. Rfe1 {[%clk 0:01:15]} 29... a4 {[%clk 0:00:56.2]} 30. Rb1 {[%clk
0:00:27]} 30... Rab8 {[%clk 0:00:49.6]} 31. Re3 {[%clk 0:00:24.8]} 31... axb3
{[%clk 0:00:46.1]} 32. axb3 {[%clk 0:00:25.7]} 32... Bxc4 {[%clk 0:00:45.7]} 33.
Bf1 {[%clk 0:00:18.1]} 33... Bxb3 {[%clk 0:00:42.7]} 34. Rc1 {[%clk 0:00:16.9]}
34... Bd5 {[%clk 0:00:41.3]} 35. f4 {[%clk 0:00:16]} 35... Rb2 {[%clk
0:00:40.1]} 36. Rd3 {[%clk 0:00:12.8]} 36... Nf3+ {[%clk 0:00:39.5]} 37. Rxf3
{[%clk 0:00:12.4]} 37... Bxf3 {[%clk 0:00:40.4]} 0-1

[Event "*** Titled Tuesday Blitz"]
[Site "Chess.com"]
[Date "2020.04.21"]
[Round "1"]
[White "Jbd735"]
[Black "abhidabhi"]
[Result "0-1"]
[WhiteElo "2434"]
[BlackElo "2826"]
[TimeControl "180+1"]
[EndTime "10:06:50 PDT"]
[Termination "abhidabhi won on time"]

1. e4 {[%clk 0:02:59.5]} 1... e5 {[%clk 0:02:59.6]} 2. Nf3 {[%clk 0:02:59.1]}
2... Nc6 {[%clk 0:02:59.9]} 3. Bb5 {[%clk 0:02:58.7]} 3... a6 {[%clk 0:03:00.2]}
4. Ba4 {[%clk 0:02:58.8]} 4... Nf6 {[%clk 0:02:59.8]} 5. O-O {[%clk 0:02:58.7]}
5... b5 {[%clk 0:02:59.2]} 6. Bb3 {[%clk 0:02:57.3]} 6... Bb7 {[%clk 0:02:59.4]}
7. Re1 {[%clk 0:02:49.8]} 7... Bc5 {[%clk 0:02:58.4]} 8. d3 {[%clk 0:02:37.4]}
8... d6 {[%clk 0:02:56.2]} 9. c3 {[%clk 0:02:34.6]} 9... h6 {[%clk 0:02:53.2]}
10. Nbd2 {[%clk 0:02:26.2]} 10... O-O {[%clk 0:02:51.3]} 11. Nf1 {[%clk
0:02:26.2]} 11... a5 {[%clk 0:02:35.1]} 12. a4 {[%clk 0:02:23.9]} 12... b4
{[%clk 0:02:34.8]} 13. Ng3 {[%clk 0:02:10]} 13... Ba7 {[%clk 0:02:03.6]} 14. Nf5
{[%clk 0:01:48.6]} 14... bxc3 {[%clk 0:01:47.5]} 15. bxc3 {[%clk 0:01:46.1]}
15... d5 {[%clk 0:01:45.2]} 16. exd5 {[%clk 0:01:22.9]} 16... Nxd5 {[%clk
0:01:42.3]} 17. Bd2 {[%clk 0:00:20.3]} 17... Nf4 {[%clk 0:01:20.2]} 18. Bxf4
{[%clk 0:00:19.2]} 18... exf4 {[%clk 0:01:20.3]} 19. Rb1 {[%clk 0:00:18.9]}
19... Bc8 {[%clk 0:01:19]} 20. N5d4 {[%clk 0:00:11.6]} 20... Nxd4 {[%clk
0:01:16.1]} 21. cxd4 {[%clk 0:00:12.5]} 21... Bxd4 {[%clk 0:01:13.5]} 22. Nxd4
{[%clk 0:00:12.3]} 22... Qxd4 {[%clk 0:01:13.6]} 23. Qh5 {[%clk 0:00:09.1]}
23... Ra6 {[%clk 0:00:51.1]} 24. Re7 {[%clk 0:00:04.2]} 24... Rf6 {[%clk
0:00:42.7]} 25. Bc4 {[%clk 0:00:03.1]} 25... f3 {[%clk 0:00:39.7]} 26. gxf3
{[%clk 0:00:01.3]} 26... Qd6 {[%clk 0:00:29.7]} 0-1

[Event "*** Titled Tuesday Blitz"]
[Site "Chess.com"]
[Date "2020.04.21"]
[Round "1"]
[White "AlhosaniOmran1"]
[Black "Gabrielian_Artur"]
[Result "0-1"]
[WhiteElo "2377"]
[BlackElo "2716"]
[TimeControl "180+1"]
[EndTime "10:06:50 PDT"]
[Termination "Gabrielian_Artur won by resignation"]

1. e4 {[%clk 0:03:00.7]} 1... c5 {[%clk 0:02:59.7]} 2. Nf3 {[%clk 0:02:59.9]}
2... d6 {[%clk 0:02:58.4]} 3. d4 {[%clk 0:02:58]} 3... cxd4 {[%clk 0:02:58.6]}
4. Nxd4 {[%clk 0:02:58.2]} 4... Nf6 {[%clk 0:02:58.8]} 5. Nc3 {[%clk 0:02:58.5]}
5... Nc6 {[%clk 0:02:59]} 6. f3 {[%clk 0:02:57.7]} 6... e5 {[%clk 0:02:57.1]} 7.
Nb3 {[%clk 0:02:56.9]} 7... Be7 {[%clk 0:02:57.4]} 8. Be3 {[%clk 0:02:56.4]}
8... O-O {[%clk 0:02:57.1]} 9. Qd2 {[%clk 0:02:56.9]} 9... Be6 {[%clk
0:02:54.7]} 10. O-O-O {[%clk 0:02:55.9]} 10... a5 {[%clk 0:02:47.8]} 11. Bb5
{[%clk 0:02:48]} 11... Na7 {[%clk 0:02:47.4]} 12. Ba4 {[%clk 0:02:39.9]} 12...
Qb8 {[%clk 0:02:43.3]} 13. g4 {[%clk 0:02:31.9]} 13... Rc8 {[%clk 0:02:41.9]}
14. g5 {[%clk 0:02:31.9]} 14... Ne8 {[%clk 0:02:19.5]} 15. Kb1 {[%clk
0:02:23.4]} 15... Rxc3 {[%clk 0:02:07.3]} 16. Qxc3 {[%clk 0:01:43]} 16... b5
{[%clk 0:02:06.1]} 17. Bxa7 {[%clk 0:01:43.2]} 17... Rxa7 {[%clk 0:02:02.4]} 18.
Nxa5 {[%clk 0:01:43.3]} 18... Qa8 {[%clk 0:01:35.1]} 19. Nc6 {[%clk 0:01:33]}
19... Rxa4 {[%clk 0:01:28.2]} 20. Nxe7+ {[%clk 0:01:33.1]} 20... Kf8 {[%clk
0:01:28.5]} 21. Nd5 {[%clk 0:01:32.7]} 21... Rxa2 {[%clk 0:01:26.4]} 22. b3
{[%clk 0:01:26]} 22... Bxd5 {[%clk 0:01:23.9]} 23. Rxd5 {[%clk 0:01:25.2]} 23...
b4 {[%clk 0:01:23.1]} 24. Qxb4 {[%clk 0:01:11.5]} 24... Ra1+ {[%clk 0:01:22.5]}
25. Kb2 {[%clk 0:01:11.7]} 25... Rxh1 {[%clk 0:01:15]} 26. Ra5 {[%clk
0:01:11.7]} 26... Qd8 {[%clk 0:01:13]} 27. Rb5 {[%clk 0:01:10.8]} 27... Rxh2
{[%clk 0:01:07.8]} 28. Rb8 {[%clk 0:01:09.8]} 28... Qc7 {[%clk 0:01:07.3]} 29.
Qb5 {[%clk 0:00:37.9]} 29... Rxc2+ {[%clk 0:00:51.9]} 30. Ka3 {[%clk 0:00:38.1]}
30... Qa7+ {[%clk 0:00:48.4]} 31. Kb4 {[%clk 0:00:38.4]} 31... Qd4+ {[%clk
0:00:46.8]} 32. Ka3 {[%clk 0:00:34.2]} 32... Qc5+ {[%clk 0:00:44]} 33. Qxc5
{[%clk 0:00:34.1]} 33... dxc5 {[%clk 0:00:42.5]} 34. Rc8 {[%clk 0:00:34.2]}
34... Ke7 {[%clk 0:00:41.8]} 35. Ka4 {[%clk 0:00:34.1]} 35... Nd6 {[%clk
0:00:34.8]} 36. Rc7+ {[%clk 0:00:32.7]} 36... Kd8 {[%clk 0:00:34.5]} 0-1

[Event "*** Titled Tuesday Blitz"]
[Site "Chess.com"]
[Date "2020.04.21"]
[Round "1"]
[White "DanielRensch"]
[Black "gmelviro"]
[Result "0-1"]
[WhiteElo "2506"]
[BlackElo "2135"]
[TimeControl "180+1"]
[EndTime "10:06:50 PDT"]
[Termination "gmelviro won by checkmate"]

1. e4 {[%clk 0:02:59.1]} 1... e5 {[%clk 0:02:51.3]} 2. Nf3 {[%clk 0:02:58.5]}
2... Nc6 {[%clk 0:02:28.2]} 3. d4 {[%clk 0:02:58.2]} 3... exd4 {[%clk
0:02:25.5]} 4. Nxd4 {[%clk 0:02:59.1]} 4... Nf6 {[%clk 0:02:21.8]} 5. Nxc6
{[%clk 0:02:57.6]} 5... bxc6 {[%clk 0:02:20.7]} 6. Bd3 {[%clk 0:02:57.1]} 6...
d5 {[%clk 0:02:18.3]} 7. e5 {[%clk 0:02:51.6]} 7... Ng4 {[%clk 0:02:15.9]} 8.
O-O {[%clk 0:02:48.2]} 8... Be7 {[%clk 0:02:03.2]} 9. Qe2 {[%clk 0:02:45]} 9...
f6 {[%clk 0:01:17.4]} 10. exf6 {[%clk 0:02:41.6]} 10... Nxf6 {[%clk 0:01:14.5]}
11. Re1 {[%clk 0:02:41.6]} 11... Kf7 {[%clk 0:01:10.5]} 12. Nc3 {[%clk
0:02:37.8]} 12... Re8 {[%clk 0:01:07.5]} 13. Bg5 {[%clk 0:02:19]} 13... Bg4
{[%clk 0:00:56.7]} 14. Qd2 {[%clk 0:02:07.5]} 14... Qd7 {[%clk 0:00:40.1]} 15.
Qf4 {[%clk 0:02:01.1]} 15... h6 {[%clk 0:00:31.5]} 16. Rxe7+ {[%clk 0:01:43.8]}
16... Rxe7 {[%clk 0:00:26.3]} 17. Bxf6 {[%clk 0:01:43.1]} 17... gxf6 {[%clk
0:00:22.1]} 18. Qxh6 {[%clk 0:01:42.3]} 18... Rg8 {[%clk 0:00:21.6]} 19. Qf4
{[%clk 0:01:06]} 19... Re5 {[%clk 0:00:19.3]} 20. Na4 {[%clk 0:01:00.3]} 20...
Qe7 {[%clk 0:00:17.7]} 21. Bf1 {[%clk 0:00:47.5]} 21... Bh3 {[%clk 0:00:16]} 22.
Qh6 {[%clk 0:00:37.7]} 22... Bxg2 {[%clk 0:00:14]} 23. f4 {[%clk 0:00:25]} 23...
Bh3+ {[%clk 0:00:08.1]} 24. Kf2 {[%clk 0:00:23.2]} 24... Re2+ {[%clk 0:00:08.1]}
25. Bxe2 {[%clk 0:00:09.8]} 25... Rg2+ {[%clk 0:00:07.8]} 26. Kf3 {[%clk
0:00:09.2]} 26... Qxe2# {[%clk 0:00:08.7]} 0-1

[Event "*** Titled Tuesday Blitz"]
[Site "Chess.com"]
[Date "2020.04.21"]
[Round "1"]
[White "want2lose"]
[Black "MokshAD1603"]
[Result "1-0"]
[WhiteElo "2918"]
[BlackElo "2460"]
[TimeControl "180+1"]
[EndTime "10:06:51 PDT"]
[Termination "want2lose won on time"]

1. Nf3 {[%clk 0:03:00.9]} 1... Nf6 {[%clk 0:02:57]} 2. g3 {[%clk 0:03:01.3]}
2... g6 {[%clk 0:02:57.6]} 3. Bg2 {[%clk 0:03:01.9]} 3... Bg7 {[%clk 0:02:58.5]}
4. O-O {[%clk 0:03:02.8]} 4... O-O {[%clk 0:02:59.4]} 5. c4 {[%clk 0:03:03.3]}
5... d5 {[%clk 0:03:00.2]} 6. cxd5 {[%clk 0:03:04.2]} 6... Nxd5 {[%clk
0:02:57.2]} 7. d4 {[%clk 0:03:04.6]} 7... Nb6 {[%clk 0:02:58.1]} 8. e4 {[%clk
0:03:05.1]} 8... Nc6 {[%clk 0:02:58.5]} 9. d5 {[%clk 0:03:05.5]} 9... Ne5 {[%clk
0:02:57.8]} 10. Nxe5 {[%clk 0:03:04.9]} 10... Bxe5 {[%clk 0:02:58.7]} 11. Nc3
{[%clk 0:03:04.8]} 11... c6 {[%clk 0:02:57.4]} 12. Bh6 {[%clk 0:03:03.9]} 12...
Bg7 {[%clk 0:02:52.2]} 13. Bxg7 {[%clk 0:03:04]} 13... Kxg7 {[%clk 0:02:53.1]}
14. dxc6 {[%clk 0:02:52.8]} 14... bxc6 {[%clk 0:02:47.1]} 15. Qc2 {[%clk
0:02:43.7]} 15... Be6 {[%clk 0:02:45]} 16. Rac1 {[%clk 0:02:30.8]} 16... Rc8
{[%clk 0:02:42.3]} 17. Rfd1 {[%clk 0:02:20]} 17... Qc7 {[%clk 0:02:41.2]} 18. b3
{[%clk 0:02:11.4]} 18... Rfd8 {[%clk 0:02:36.1]} 19. Nd5 {[%clk 0:01:57.5]}
19... Qb7 {[%clk 0:02:26.4]} 20. Nf4 {[%clk 0:01:52.5]} 20... Bd7 {[%clk
0:02:05]} 21. Qc5 {[%clk 0:01:47.5]} 21... Be8 {[%clk 0:01:55.2]} 22. e5 {[%clk
0:01:37.4]} 22... e6 {[%clk 0:01:51.2]} 23. Rd6 {[%clk 0:00:52.8]} 23... Rxd6
{[%clk 0:00:23.2]} 24. exd6 {[%clk 0:00:51.3]} 24... Nd7 {[%clk 0:00:04.1]} 25.
Qg5 {[%clk 0:00:22.4]} 1-0

[Event "*** Titled Tuesday Blitz"]
[Site "Chess.com"]
[Date "2020.04.21"]
[Round "1"]
[White "jaskol95"]
[Black "francyIM"]
[Result "0-1"]
[WhiteElo "2364"]
[BlackElo "2702"]
[TimeControl "180+1"]
[EndTime "10:06:52 PDT"]
[Termination "francyIM won by checkmate"]

1. d4 {[%clk 0:02:58.8]} 1... Nf6 {[%clk 0:02:59]} 2. Bf4 {[%clk 0:02:57.5]}
2... d6 {[%clk 0:02:55.5]} 3. Nc3 {[%clk 0:02:53.4]} 3... Bf5 {[%clk 0:02:50.7]}
4. f3 {[%clk 0:02:52.1]} 4... Bg6 {[%clk 0:02:49.7]} 5. e4 {[%clk 0:02:49.7]}
5... Nbd7 {[%clk 0:02:43.2]} 6. Bg5 {[%clk 0:02:21.2]} 6... e5 {[%clk
0:02:42.7]} 7. d5 {[%clk 0:02:18.6]} 7... Be7 {[%clk 0:02:40.9]} 8. Bd3 {[%clk
0:02:12.3]} 8... Nxd5 {[%clk 0:02:32.3]} 9. Bxe7 {[%clk 0:02:05.5]} 9... Nxe7
{[%clk 0:02:33.2]} 10. Nge2 {[%clk 0:02:05.2]} 10... O-O {[%clk 0:02:32.2]} 11.
Qd2 {[%clk 0:02:04.8]} 11... Nc5 {[%clk 0:02:30.9]} 12. h4 {[%clk 0:01:56.5]}
12... f5 {[%clk 0:02:29.3]} 13. h5 {[%clk 0:01:52.9]} 13... Bf7 {[%clk 0:02:26]}
14. exf5 {[%clk 0:01:45.7]} 14... Nxd3+ {[%clk 0:02:25.2]} 15. Qxd3 {[%clk
0:01:41.5]} 15... d5 {[%clk 0:02:22.9]} 16. g4 {[%clk 0:01:39.7]} 16... d4
{[%clk 0:02:20.2]} 17. Ne4 {[%clk 0:01:36.9]} 17... Nd5 {[%clk 0:02:18]} 18.
O-O-O {[%clk 0:01:22.9]} 18... Nb4 {[%clk 0:02:16.5]} 19. Qb5 {[%clk 0:01:22]}
19... Nxa2+ {[%clk 0:01:57.9]} 20. Kb1 {[%clk 0:01:21.6]} 20... Bd5 {[%clk
0:01:57.9]} 21. h6 {[%clk 0:01:07.8]} 21... a6 {[%clk 0:01:43]} 22. Qa5 {[%clk
0:00:57.2]} 22... b6 {[%clk 0:01:42.3]} 23. Qd2 {[%clk 0:00:56.6]} 23... g6
{[%clk 0:01:24.9]} 24. fxg6 {[%clk 0:00:52.6]} 24... Rxf3 {[%clk 0:01:23.3]} 25.
gxh7+ {[%clk 0:00:47.6]} 25... Kh8 {[%clk 0:01:22.3]} 26. Ng5 {[%clk 0:00:30.2]}
26... Rf2 {[%clk 0:01:10.4]} 27. Rh5 {[%clk 0:00:25.8]} 27... Qe7 {[%clk
0:00:58.2]} 28. Qe1 {[%clk 0:00:23.6]} 28... Raf8 {[%clk 0:00:45.8]} 29. Ng3
{[%clk 0:00:18]} 29... R2f6 {[%clk 0:00:25.1]} 30. Rxd4 {[%clk 0:00:16.9]} 30...
exd4 {[%clk 0:00:20.4]} 31. Qxe7 {[%clk 0:00:15.8]} 31... Rf1+ {[%clk
0:00:20.5]} 32. Nxf1 {[%clk 0:00:13.5]} 32... Rxf1+ {[%clk 0:00:20.6]} 33. Qe1
{[%clk 0:00:13.6]} 33... Rxe1# {[%clk 0:00:21]} 0-1

[Event "*** Titled Tuesday Blitz"]
[Site "Chess.com"]
[Date "2020.04.21"]
[Round "1"]
[White "DucksParadise"]
[Black "thedjoker98"]
[Result "0-1"]
[WhiteElo "2058"]
[BlackElo "2509"]
[TimeControl "180+1"]
[EndTime "10:06:53 PDT"]
[Termination "thedjoker98 won by resignation"]

1. d4 {[%clk 0:02:59.6]} 1... d5 {[%clk 0:02:59.8]} 2. Nc3 {[%clk 0:02:59.3]}
2... Nf6 {[%clk 0:02:50.6]} 3. Bf4 {[%clk 0:02:58.2]} 3... c5 {[%clk 0:02:45.2]}
4. e4 {[%clk 0:02:56.4]} 4... Nxe4 {[%clk 0:02:26]} 5. Nxe4 {[%clk 0:02:53.6]}
5... dxe4 {[%clk 0:02:26.9]} 6. dxc5 {[%clk 0:02:53.9]} 6... Qa5+ {[%clk
0:02:22.6]} 7. c3 {[%clk 0:02:53.8]} 7... Qxc5 {[%clk 0:02:22.8]} 8. Qa4+ {[%clk
0:02:50.6]} 8... Nc6 {[%clk 0:02:21.4]} 9. Qxe4 {[%clk 0:02:50.4]} 9... Bf5
{[%clk 0:02:21.2]} 10. Qe3 {[%clk 0:02:37]} 10... e6 {[%clk 0:02:13.9]} 11. Nf3
{[%clk 0:02:21.7]} 11... Qxe3+ {[%clk 0:02:08.4]} 12. Bxe3 {[%clk 0:02:22.6]}
12... Be7 {[%clk 0:02:07.8]} 13. Bb5 {[%clk 0:02:18]} 13... O-O {[%clk
0:01:50.9]} 14. O-O {[%clk 0:02:14.2]} 14... a6 {[%clk 0:01:48]} 15. Bxc6 {[%clk
0:02:05]} 15... bxc6 {[%clk 0:01:48.9]} 16. Nd4 {[%clk 0:02:05.9]} 16... Be4
{[%clk 0:01:48.9]} 17. f3 {[%clk 0:02:03.8]} 17... Bd5 {[%clk 0:01:49]} 18. b3
{[%clk 0:01:40.4]} 18... c5 {[%clk 0:01:46.6]} 19. Ne2 {[%clk 0:01:37.8]} 19...
a5 {[%clk 0:01:29.7]} 20. c4 {[%clk 0:01:36.7]} 20... Bc6 {[%clk 0:01:29.4]} 21.
a4 {[%clk 0:01:22.8]} 21... Rab8 {[%clk 0:01:23.9]} 22. Rab1 {[%clk 0:01:22.3]}
22... Rfd8 {[%clk 0:01:23.4]} 23. Kf2 {[%clk 0:01:20.6]} 23... Rd3 {[%clk
0:00:57.1]} 24. Nc1 {[%clk 0:01:09.1]} 24... Rc3 {[%clk 0:00:57.2]} 25. Bd2
{[%clk 0:01:05.3]} 25... Rc2 {[%clk 0:00:56.7]} 26. Ke2 {[%clk 0:00:59.1]} 26...
Rd8 {[%clk 0:00:44.2]} 27. Nd3 {[%clk 0:00:56]} 27... Bg5 {[%clk 0:00:42.4]} 28.
Rfd1 {[%clk 0:00:55.1]} 28... e5 {[%clk 0:00:28.9]} 29. Rb2 {[%clk 0:00:29.1]}
29... e4 {[%clk 0:00:20.4]} 30. fxe4 {[%clk 0:00:20.8]} 30... Bxe4 {[%clk
0:00:21.3]} 31. Rxc2 {[%clk 0:00:15.5]} 31... Bxd3+ {[%clk 0:00:21]} 0-1

[Event "*** Titled Tuesday Blitz"]
[Site "Chess.com"]
[Date "2020.04.21"]
[Round "1"]
[White "floplover"]
[Black "DaggiGretarsson"]
[Result "0-1"]
[WhiteElo "2258"]
[BlackElo "2602"]
[TimeControl "180+1"]
[EndTime "10:06:55 PDT"]
[Termination "DaggiGretarsson won by resignation"]

1. d4 {[%clk 0:02:44.9]} 1... g6 {[%clk 0:02:59.4]} 2. c4 {[%clk 0:02:44.9]}
2... Bg7 {[%clk 0:02:59.6]} 3. Nf3 {[%clk 0:02:44.5]} 3... e6 {[%clk 0:02:59.3]}
4. Nc3 {[%clk 0:02:42.9]} 4... Ne7 {[%clk 0:02:58.9]} 5. e4 {[%clk 0:02:42]}
5... d5 {[%clk 0:02:58.8]} 6. cxd5 {[%clk 0:02:22.1]} 6... exd5 {[%clk
0:02:58.3]} 7. exd5 {[%clk 0:02:22.4]} 7... Nxd5 {[%clk 0:02:38.3]} 8. Bc4
{[%clk 0:02:22.1]} 8... Qe7+ {[%clk 0:02:24.7]} 9. Qe2 {[%clk 0:01:53.5]} 9...
Qxe2+ {[%clk 0:02:23.5]} 10. Kxe2 {[%clk 0:01:54]} 10... Nb6 {[%clk 0:02:22.9]}
11. Bb5+ {[%clk 0:01:49.1]} 11... c6 {[%clk 0:02:20.8]} 12. Bd3 {[%clk
0:01:47.5]} 12... O-O {[%clk 0:02:20.3]} 13. h3 {[%clk 0:01:42.1]} 13... Re8+
{[%clk 0:02:12.7]} 14. Kd1 {[%clk 0:01:39.3]} 14... N8d7 {[%clk 0:02:01.2]} 15.
Kc2 {[%clk 0:01:39.2]} 15... Nf6 {[%clk 0:01:58.8]} 16. Bg5 {[%clk 0:01:36.9]}
16... Nfd5 {[%clk 0:01:57.9]} 17. a3 {[%clk 0:01:35]} 17... Be6 {[%clk
0:01:55.9]} 18. Rhe1 {[%clk 0:01:31.4]} 18... h6 {[%clk 0:01:52.5]} 19. Bd2
{[%clk 0:01:26.7]} 19... Nxc3 {[%clk 0:01:40.1]} 20. bxc3 {[%clk 0:01:24.8]}
20... Rac8 {[%clk 0:01:40]} 21. Ne5 {[%clk 0:01:17.3]} 21... c5 {[%clk
0:01:36.7]} 22. Be3 {[%clk 0:01:07.8]} 22... Nd5 {[%clk 0:01:29.1]} 23. Rab1
{[%clk 0:00:58.8]} 23... Nxe3+ {[%clk 0:01:11.5]} 24. fxe3 {[%clk 0:00:59.7]}
24... Bxe5 {[%clk 0:01:11]} 25. dxe5 {[%clk 0:01:00.6]} 25... c4 {[%clk
0:01:10]} 26. Be4 {[%clk 0:00:57.3]} 26... b6 {[%clk 0:01:10.1]} 27. Rb5 {[%clk
0:00:53.1]} 27... Red8 {[%clk 0:01:06.6]} 28. Rd1 {[%clk 0:00:52.5]} 28... Bd7
{[%clk 0:01:03.8]} 29. Rb4 {[%clk 0:00:49]} 29... a5 {[%clk 0:01:03.2]} 30. Rxd7
{[%clk 0:00:37.7]} 30... axb4 {[%clk 0:00:45.7]} 31. Rxd8+ {[%clk 0:00:36]}
31... Rxd8 {[%clk 0:00:45.7]} 32. cxb4 {[%clk 0:00:35.5]} 32... Kf8 {[%clk
0:00:41.3]} 33. Kc3 {[%clk 0:00:35.4]} 33... b5 {[%clk 0:00:41]} 34. a4 {[%clk
0:00:30.7]} 34... bxa4 {[%clk 0:00:40.2]} 35. Kxc4 {[%clk 0:00:31.6]} 35... Rc8+
{[%clk 0:00:40]} 36. Kd4 {[%clk 0:00:28.2]} 36... a3 {[%clk 0:00:40.1]} 37. Bb1
{[%clk 0:00:20.6]} 37... Rc1 {[%clk 0:00:39.1]} 38. Ba2 {[%clk 0:00:20.4]} 38...
Rc2 {[%clk 0:00:38.9]} 39. Bb3 {[%clk 0:00:17.2]} 39... a2 {[%clk 0:00:37.5]}
0-1